[Event "*** Titled Tuesday 3|2 Blitz"]
[Site "Chess.com"]
[Date "2016.01.05"]
[Round "1"]
[White "ChessWarrior7197"]
[Black "Rating-Schmating"]
[Result "1-0"]
[WhiteElo "2441"]
[BlackElo "2129"]
[TimeControl "180+2"]
[EndTime "11:04:58 PST"]
[Termination "ChessWarrior7197 won by resignation"]

1. e4 {[%clk 0:03:01.2]} 1... e6 {[%clk 0:03:01.1]} 2. d4 {[%clk 0:03:01.5]}
2... d5 {[%clk 0:03:01.6]} 3. Nd2 {[%clk 0:03:02.1]} 3... Nf6 {[%clk 0:03:01.6]}
4. e5 {[%clk 0:03:00.4]} 4... Nfd7 {[%clk 0:03:01.3]} 5. Bd3 {[%clk 0:02:59.9]}
5... c5 {[%clk 0:03:02.3]} 6. c3 {[%clk 0:03:00.7]} 6... Nc6 {[%clk 0:03:03.3]}
7. Ne2 {[%clk 0:03:01.3]} 7... Qb6 {[%clk 0:03:03.9]} 8. Nf3 {[%clk 0:03:00.7]}
8... cxd4 {[%clk 0:03:01.3]} 9. cxd4 {[%clk 0:02:58]} 9... Bb4+ {[%clk
0:03:01.9]} 10. Bd2 {[%clk 0:02:57.9]} 10... Bxd2+ {[%clk 0:03:02.6]} 11. Qxd2
{[%clk 0:02:58.8]} 11... Qb4 {[%clk 0:02:59.2]} 12. a3 {[%clk 0:02:56.7]} 12...
Qxd2+ {[%clk 0:02:58.3]} 13. Kxd2 {[%clk 0:02:55.1]} 13... f6 {[%clk 0:02:58.2]}
14. exf6 {[%clk 0:02:53.9]} 14... Nxf6 {[%clk 0:02:59]} 15. b4 {[%clk
0:02:54.6]} 15... a6 {[%clk 0:02:59.5]} 16. Rac1 {[%clk 0:02:54.4]} 16... O-O
{[%clk 0:03:00.2]} 17. h3 {[%clk 0:02:52]} 17... Ne4+ {[%clk 0:02:58.5]} 18. Ke3
{[%clk 0:02:50.6]} 18... Nd6 {[%clk 0:02:57.3]} 19. Ne5 {[%clk 0:02:47.3]} 19...
Nxe5 {[%clk 0:02:54.8]} 20. dxe5 {[%clk 0:02:46.4]} 20... Nf5+ {[%clk
0:02:53.7]} 21. Bxf5 {[%clk 0:02:47.3]} 21... Rxf5 {[%clk 0:02:53.1]} 22. f4
{[%clk 0:02:48.4]} 22... Bd7 {[%clk 0:02:52.5]} 23. Nd4 {[%clk 0:02:48.9]} 23...
Rff8 {[%clk 0:02:52.8]} 24. Rc7 {[%clk 0:02:48]} 24... Rfd8 {[%clk 0:02:53.3]}
25. Rhc1 {[%clk 0:02:43.4]} 25... Rab8 {[%clk 0:02:47.4]} 26. g4 {[%clk
0:02:40.8]} 26... Kf7 {[%clk 0:02:47]} 27. f5 {[%clk 0:02:41.7]} 27... exf5
{[%clk 0:02:40.2]} 28. e6+ {[%clk 0:02:42.1]} 28... Ke7 {[%clk 0:02:41.4]} 29.
exd7 {[%clk 0:02:42.8]} 29... Rxd7 {[%clk 0:02:42.7]} 30. Nxf5+ {[%clk
0:02:43.3]} 30... Ke8 {[%clk 0:02:41.8]} 31. Nxg7+ {[%clk 0:02:43.3]} 31... Kd8
{[%clk 0:02:41.3]} 32. Ne6+ {[%clk 0:02:36.6]} 32... Ke7 {[%clk 0:02:42]} 33.
Rxd7+ {[%clk 0:02:36.4]} 33... Kxd7 {[%clk 0:02:43.4]} 34. Nc5+ {[%clk
0:02:37.2]} 34... Kd6 {[%clk 0:02:44.8]} 35. Kd4 {[%clk 0:02:38.4]} 35... b6
{[%clk 0:02:43.7]} 36. Nd3 {[%clk 0:02:33.3]} 36... Re8 {[%clk 0:02:44.7]} 37.
Re1 {[%clk 0:02:34.1]} 37... Rc8 {[%clk 0:02:41.9]} 38. Rf1 {[%clk 0:02:22.5]}
38... Rc4+ {[%clk 0:02:42.1]} 39. Ke3 {[%clk 0:02:23.3]} 39... Re4+ {[%clk
0:02:40]} 40. Kd2 {[%clk 0:02:24]} 40... Ke6 {[%clk 0:02:37.2]} 41. Rf8 {[%clk
0:02:24.1]} 41... Ke7 {[%clk 0:02:34.9]} 42. Ra8 {[%clk 0:02:22.7]} 42... a5
{[%clk 0:02:32.5]} 43. bxa5 {[%clk 0:02:21.1]} 43... b5 {[%clk 0:02:33.6]} 44.
Nb4 {[%clk 0:02:18.4]} 44... Rd4+ {[%clk 0:02:34.3]} 45. Ke3 {[%clk 0:02:16.8]}
45... Re4+ {[%clk 0:02:34.9]} 46. Kd3 {[%clk 0:02:18]} 46... Kd6 {[%clk
0:02:34.3]} 47. a6 {[%clk 0:02:18.7]} 47... Kc7 {[%clk 0:02:33.4]} 48. Nxd5+
{[%clk 0:02:19]} 48... Kc6 {[%clk 0:02:34.8]} 49. Kxe4 {[%clk 0:02:19.9]} 1-0

[Event "*** Titled Tuesday 3|2 Blitz"]
[Site "Chess.com"]
[Date "2016.01.05"]
[Round "1"]
[White "Gergo85"]
[Black "Hollywood_Chess"]
[Result "1-0"]
[WhiteElo "2346"]
[BlackElo "1924"]
[TimeControl "180+2"]
[EndTime "11:05:28 PST"]
[Termination "Gergo85 won by resignation"]

1. Nf3 {[%clk 0:02:58.9]} 1... c5 {[%clk 0:03:00.3]} 2. e4 {[%clk 0:02:59.8]}
2... g6 {[%clk 0:03:01.1]} 3. d4 {[%clk 0:02:59.4]} 3... cxd4 {[%clk 0:03:01.8]}
4. Qxd4 {[%clk 0:03:01]} 4... Nf6 {[%clk 0:03:00.8]} 5. Nc3 {[%clk 0:03:00.8]}
5... Nc6 {[%clk 0:02:58.4]} 6. Qa4 {[%clk 0:03:02.3]} 6... d6 {[%clk 0:02:57]}
7. e5 {[%clk 0:03:03.4]} 7... Ng4 {[%clk 0:02:54.1]} 8. exd6 {[%clk 0:03:02.6]}
8... Qxd6 {[%clk 0:02:45.4]} 9. h3 {[%clk 0:02:52.9]} 9... Ne5 {[%clk
0:02:43.7]} 10. Nxe5 {[%clk 0:02:51.4]} 10... Qxe5+ {[%clk 0:02:44.4]} 11. Be2
{[%clk 0:02:51.5]} 11... Bg7 {[%clk 0:02:35.2]} 12. O-O {[%clk 0:02:49.2]} 12...
O-O {[%clk 0:02:32.9]} 13. Bf4 {[%clk 0:02:50]} 13... Qd4 {[%clk 0:02:19.8]} 14.
Qxd4 {[%clk 0:02:20.4]} 14... Nxd4 {[%clk 0:02:19.2]} 15. Bd3 {[%clk 0:02:22]}
15... Bf5 {[%clk 0:02:16.3]} 16. Bxf5 {[%clk 0:02:16.7]} 16... Nxf5 {[%clk
0:02:16.8]} 17. Ne2 {[%clk 0:02:05.5]} 17... Rac8 {[%clk 0:02:02.2]} 18. c3
{[%clk 0:02:06.6]} 18... Rfd8 {[%clk 0:02:02.1]} 19. Rfd1 {[%clk 0:02:06.9]}
19... Kf8 {[%clk 0:01:56]} 20. g4 {[%clk 0:02:06.5]} 20... Nh4 {[%clk
0:01:50.5]} 21. Bg3 {[%clk 0:02:04]} 21... Nf3+ {[%clk 0:01:51.2]} 22. Kg2
{[%clk 0:02:05.4]} 22... Ne5 {[%clk 0:01:43]} 23. Bxe5 {[%clk 0:02:05.1]} 23...
Bxe5 {[%clk 0:01:43.7]} 24. f4 {[%clk 0:02:05.9]} 24... Bg7 {[%clk 0:01:43.1]}
25. Kf3 {[%clk 0:02:07.2]} 25... e5 {[%clk 0:01:41.1]} 26. f5 {[%clk 0:02:08.3]}
26... Ke7 {[%clk 0:01:41.2]} 27. Ng3 {[%clk 0:02:08.8]} 27... Rxd1 {[%clk
0:01:37.6]} 28. Rxd1 {[%clk 0:02:08.9]} 28... Rc4 {[%clk 0:01:38.6]} 29. Ne4
{[%clk 0:02:09.5]} 29... Ra4 {[%clk 0:01:36.7]} 30. a3 {[%clk 0:02:10.3]} 30...
Ra6 {[%clk 0:01:33.7]} 31. Rd3 {[%clk 0:02:08.3]} 31... Rb6 {[%clk 0:01:34.4]}
32. b4 {[%clk 0:02:08.3]} 32... Bh6 {[%clk 0:01:32.5]} 33. c4 {[%clk 0:02:09.1]}
33... Rc6 {[%clk 0:01:32.6]} 34. c5 {[%clk 0:02:09.7]} 34... b6 {[%clk
0:01:31.4]} 35. b5 {[%clk 0:02:10.9]} 35... Rc8 {[%clk 0:01:30.1]} 36. c6 {[%clk
0:02:12.2]} 36... Bc1 {[%clk 0:01:28.7]} 37. Rd7+ {[%clk 0:02:11]} 37... Kf8
{[%clk 0:01:29.8]} 38. Nd6 {[%clk 0:02:09.1]} 38... Bxa3 {[%clk 0:01:28.4]} 39.
Nxc8 {[%clk 0:02:09.5]} 1-0

[Event "*** Titled Tuesday 3|2 Blitz"]
[Site "Chess.com"]
[Date "2016.01.05"]
[Round "1"]
[White "BIG_Pirate"]
[Black "swayamsm"]
[Result "0-1"]
[WhiteElo "2222"]
[BlackElo "2533"]
[TimeControl "180+2"]
[EndTime "11:06:58 PST"]
[Termination "swayamsm won by resignation"]

1. Nf3 {[%clk 0:02:59.7]} 1... Nf6 {[%clk 0:02:59.9]} 2. c4 {[%clk 0:03:00.2]}
2... b6 {[%clk 0:02:59.8]} 3. g3 {[%clk 0:02:58.6]} 3... Bb7 {[%clk 0:03:00.8]}
4. Bg2 {[%clk 0:02:58]} 4... g6 {[%clk 0:02:57.9]} 5. O-O {[%clk 0:02:59]} 5...
c5 {[%clk 0:02:58.5]} 6. Nc3 {[%clk 0:02:43.7]} 6... Bg7 {[%clk 0:02:59.1]} 7.
a3 {[%clk 0:02:44.8]} 7... O-O {[%clk 0:02:58.7]} 8. Rb1 {[%clk 0:02:44.2]} 8...
d5 {[%clk 0:02:58.9]} 9. cxd5 {[%clk 0:02:44.5]} 9... Nxd5 {[%clk 0:03:00.8]}
10. Nxd5 {[%clk 0:02:43.4]} 10... Bxd5 {[%clk 0:03:01.9]} 11. Qc2 {[%clk
0:02:33.9]} 11... Nc6 {[%clk 0:03:01.6]} 12. b4 {[%clk 0:02:32.4]} 12... cxb4
{[%clk 0:02:53.5]} 13. axb4 {[%clk 0:02:32]} 13... Rc8 {[%clk 0:02:51.1]} 14.
Qa4 {[%clk 0:02:29.5]} 14... a5 {[%clk 0:02:42.7]} 15. bxa5 {[%clk 0:02:28.3]}
15... bxa5 {[%clk 0:02:43.6]} 16. Bb2 {[%clk 0:02:24]} 16... Nb4 {[%clk
0:02:35.4]} 17. Bxg7 {[%clk 0:02:21.9]} 17... Kxg7 {[%clk 0:02:37.3]} 18. Rfc1
{[%clk 0:02:15.9]} 18... Bxf3 {[%clk 0:02:33.2]} 19. Rxc8 {[%clk 0:02:01.9]}
19... Qxc8 {[%clk 0:02:34.1]} 20. Bxf3 {[%clk 0:02:02]} 20... Qc5 {[%clk
0:02:34.4]} 21. d4 {[%clk 0:01:57.8]} 21... Qc7 {[%clk 0:02:22.6]} 22. Ra1
{[%clk 0:01:38.1]} 22... Rd8 {[%clk 0:02:14.8]} 23. e3 {[%clk 0:01:33.6]} 23...
e5 {[%clk 0:02:06.6]} 24. dxe5 {[%clk 0:01:28.6]} 24... Qxe5 {[%clk 0:02:08.5]}
25. Qxa5 {[%clk 0:01:27.2]} 25... Qf6 {[%clk 0:02:10.1]} 26. Rc1 {[%clk
0:01:18.8]} 26... Nd3 {[%clk 0:02:06.5]} 27. Rf1 {[%clk 0:00:53.9]} 27... Rc8
{[%clk 0:01:48.8]} 28. Be4 {[%clk 0:00:43]} 28... Nc5 {[%clk 0:01:41.3]} 29. Bg2
{[%clk 0:00:40.4]} 29... h5 {[%clk 0:01:42.3]} 30. Rc1 {[%clk 0:00:25.4]} 30...
Nb3 {[%clk 0:01:42.5]} 0-1

[Event "*** Titled Tuesday 3|2 Blitz"]
[Site "Chess.com"]
[Date "2016.01.05"]
[Round "1"]
[White "CM_Perligero"]
[Black "volodja49"]
[Result "0-1"]
[WhiteElo "1961"]
[BlackElo "2303"]
[TimeControl "180+2"]
[EndTime "11:07:19 PST"]
[Termination "volodja49 won on time"]

1. e4 {[%clk 0:02:37.1]} 1... e6 {[%clk 0:03:00.3]} 2. d4 {[%clk 0:02:36.8]}
2... d5 {[%clk 0:03:01.4]} 3. e5 {[%clk 0:02:32.5]} 3... c5 {[%clk 0:03:01.9]}
4. c3 {[%clk 0:02:28.3]} 4... Qb6 {[%clk 0:03:00.8]} 5. a3 {[%clk 0:02:18.2]}
5... c4 {[%clk 0:03:01.2]} 6. Nd2 {[%clk 0:02:12.6]} 6... Bd7 {[%clk 0:03:00.2]}
7. b4 {[%clk 0:02:03.7]} 7... cxb3 {[%clk 0:03:02.1]} 8. Qxb3 {[%clk 0:01:57.9]}
8... Qxb3 {[%clk 0:03:01]} 9. Nxb3 {[%clk 0:01:56.6]} 9... Nc6 {[%clk
0:03:02.9]} 10. Nf3 {[%clk 0:01:51.3]} 10... Rc8 {[%clk 0:03:00.2]} 11. Bd2
{[%clk 0:01:50.1]} 11... f6 {[%clk 0:02:49.2]} 12. exf6 {[%clk 0:01:45.7]} 12...
gxf6 {[%clk 0:02:51.1]} 13. Bd3 {[%clk 0:01:41.1]} 13... Bd6 {[%clk 0:02:47.4]}
14. O-O {[%clk 0:01:35.4]} 14... Nge7 {[%clk 0:02:48.3]} 15. Rfe1 {[%clk
0:01:34.6]} 15... O-O {[%clk 0:02:41.2]} 16. Bh6 {[%clk 0:01:04.4]} 16... Rfe8
{[%clk 0:02:41]} 17. Nc1 {[%clk 0:01:04]} 17... Na5 {[%clk 0:02:38.4]} 18. Ne2
{[%clk 0:00:36.5]} 18... Ng6 {[%clk 0:02:38.4]} 19. Bd2 {[%clk 0:00:32.9]} 19...
Nb3 {[%clk 0:02:27.4]} 20. Ra2 {[%clk 0:00:05.6]} 20... Nxd2 {[%clk 0:02:25.2]}
21. Nxd2 {[%clk 0:00:06.8]} 21... Nf4 {[%clk 0:02:18.8]} 22. Nxf4 {[%clk
0:00:04.5]} 22... Bxf4 {[%clk 0:02:20.7]} 23. Rc1 {[%clk 0:00:02.6]} 23... b5
{[%clk 0:02:16.5]} 24. g3 {[%clk 0:00:03.3]} 24... Bh6 {[%clk 0:02:13]} 25. f4
{[%clk 0:00:04.5]} 25... Rc7 {[%clk 0:02:11.7]} 26. Nf3 {[%clk 0:00:05.3]} 26...
Rec8 {[%clk 0:02:10.2]} 27. Rac2 {[%clk 0:00:05.5]} 27... Bf8 {[%clk 0:02:10.4]}
28. Kf2 {[%clk 0:00:04.5]} 28... Bxa3 {[%clk 0:02:10.2]} 29. Ra1 {[%clk
0:00:05.5]} 29... Rxc3 {[%clk 0:02:10.6]} 30. Rxc3 {[%clk 0:00:05.2]} 30... Rxc3
{[%clk 0:02:11.2]} 31. Ke3 {[%clk 0:00:06.2]} 31... b4 {[%clk 0:02:11.1]} 32.
Ne1 {[%clk 0:00:06.6]} 32... a5 {[%clk 0:02:11.4]} 33. Kd2 {[%clk 0:00:07.4]}
33... a4 {[%clk 0:02:01.6]} 34. Nc2 {[%clk 0:00:07.6]} 34... Bb2 {[%clk
0:02:02.9]} 35. Rb1 {[%clk 0:00:07.4]} 35... Rb3 {[%clk 0:02:02.4]} 0-1

[Event "*** Titled Tuesday 3|2 Blitz"]
[Site "Chess.com"]
[Date "2016.01.05"]
[Round "1"]
[White "Quiet_Desperation"]
[Black "LePlusMortel"]
[Result "0-1"]
[WhiteElo "2140"]
[BlackElo "2450"]
[TimeControl "180+2"]
[EndTime "11:07:24 PST"]
[Termination "LePlusMortel won by resignation"]

1. e4 {[%clk 0:03:01.9]} 1... c5 {[%clk 0:02:58.7]} 2. Nf3 {[%clk 0:03:01.6]}
2... Nc6 {[%clk 0:02:58.9]} 3. d4 {[%clk 0:03:02.5]} 3... cxd4 {[%clk
0:03:00.8]} 4. Nxd4 {[%clk 0:03:04.4]} 4... g6 {[%clk 0:03:02.1]} 5. c4 {[%clk
0:03:04.8]} 5... Bg7 {[%clk 0:03:03.3]} 6. Nc2 {[%clk 0:03:05.4]} 6... Nf6
{[%clk 0:03:04.5]} 7. Nc3 {[%clk 0:03:06.7]} 7... O-O {[%clk 0:03:06.1]} 8. Be2
{[%clk 0:03:07.7]} 8... d6 {[%clk 0:03:07.7]} 9. O-O {[%clk 0:03:07.9]} 9... Bd7
{[%clk 0:03:09.3]} 10. Be3 {[%clk 0:03:04.6]} 10... Qa5 {[%clk 0:03:10]} 11. Rb1
{[%clk 0:03:01.5]} 11... Rfc8 {[%clk 0:03:10.4]} 12. b4 {[%clk 0:02:58.6]} 12...
Qd8 {[%clk 0:03:11.3]} 13. f3 {[%clk 0:02:56.5]} 13... Ne5 {[%clk 0:03:08.2]}
14. Na3 {[%clk 0:02:48]} 14... a5 {[%clk 0:03:02.5]} 15. b5 {[%clk 0:02:44.8]}
15... Be6 {[%clk 0:02:51]} 16. Nd5 {[%clk 0:02:40.3]} 16... Bxd5 {[%clk
0:02:50.1]} 17. cxd5 {[%clk 0:02:39]} 17... b6 {[%clk 0:02:43.5]} 18. Qd2 {[%clk
0:02:02.9]} 18... Ned7 {[%clk 0:02:38.3]} 19. Nc4 {[%clk 0:01:56]} 19... Nc5
{[%clk 0:02:36.3]} 20. Rfc1 {[%clk 0:01:51.5]} 20... Nfd7 {[%clk 0:02:37.2]} 21.
Bd4 {[%clk 0:01:46.4]} 21... Bxd4+ {[%clk 0:02:33.7]} 22. Qxd4 {[%clk
0:01:46.1]} 22... Qf8 {[%clk 0:02:33.1]} 23. Ne3 {[%clk 0:01:36.2]} 23... Qg7
{[%clk 0:02:33.4]} 24. Qd2 {[%clk 0:01:30.7]} 24... Qh6 {[%clk 0:02:28.2]} 25.
Qd4 {[%clk 0:01:20.6]} 25... Qg5 {[%clk 0:02:24.2]} 26. g3 {[%clk 0:01:15.3]}
26... h5 {[%clk 0:02:13.3]} 27. f4 {[%clk 0:01:11.2]} 27... Qf6 {[%clk
0:02:14.3]} 28. Qxf6 {[%clk 0:01:01]} 28... exf6 {[%clk 0:02:16.2]} 29. Nc4
{[%clk 0:00:53.7]} 29... Nb7 {[%clk 0:02:11.8]} 30. Bf3 {[%clk 0:00:43.4]} 30...
Rc5 {[%clk 0:02:05.6]} 31. Ne3 {[%clk 0:00:37.7]} 31... Rac8 {[%clk 0:02:02.9]}
32. Rxc5 {[%clk 0:00:38.6]} 32... Rxc5 {[%clk 0:02:02.8]} 33. a4 {[%clk
0:00:33.6]} 33... Rc3 {[%clk 0:01:57.1]} 34. Kf2 {[%clk 0:00:34]} 34... Nbc5
{[%clk 0:01:58.6]} 35. g4 {[%clk 0:00:29.4]} 35... hxg4 {[%clk 0:01:46.8]} 36.
Nxg4 {[%clk 0:00:29.7]} 36... Kg7 {[%clk 0:01:44.3]} 37. e5 {[%clk 0:00:21.4]}
37... fxe5 {[%clk 0:01:40.4]} 38. fxe5 {[%clk 0:00:22.7]} 38... Nd3+ {[%clk
0:01:39.5]} 39. Kg2 {[%clk 0:00:21]} 39... N3xe5 {[%clk 0:01:38]} 40. Nxe5
{[%clk 0:00:22.3]} 40... Nxe5 {[%clk 0:01:39.9]} 41. Be4 {[%clk 0:00:22.1]}
41... Rc4 {[%clk 0:01:36.9]} 42. Bf3 {[%clk 0:00:16.8]} 42... Rxa4 {[%clk
0:01:37.5]} 43. Rc1 {[%clk 0:00:18.1]} 43... Rc4 {[%clk 0:01:38.6]} 44. Re1
{[%clk 0:00:18.9]} 0-1

[Event "*** Titled Tuesday 3|2 Blitz"]
[Site "Chess.com"]
[Date "2016.01.05"]
[Round "1"]
[White "iturrizaga"]
[Black "alturas_pacificas"]
[Result "1-0"]
[WhiteElo "2383"]
[BlackElo "2092"]
[TimeControl "180+2"]
[EndTime "11:07:31 PST"]
[Termination "iturrizaga won by resignation"]

1. Nf3 {[%clk 0:02:55.2]} 1... d5 {[%clk 0:03:00.6]} 2. c4 {[%clk 0:02:55.7]}
2... c6 {[%clk 0:03:01.2]} 3. e3 {[%clk 0:02:55.8]} 3... Nf6 {[%clk 0:03:01.9]}
4. Nc3 {[%clk 0:02:56.9]} 4... e6 {[%clk 0:03:01.3]} 5. Qc2 {[%clk 0:02:54.9]}
5... Nbd7 {[%clk 0:03:01.7]} 6. b3 {[%clk 0:02:55.6]} 6... Bd6 {[%clk
0:03:01.2]} 7. Bb2 {[%clk 0:02:57.1]} 7... O-O {[%clk 0:03:01.1]} 8. Rg1 {[%clk
0:02:58.4]} 8... e5 {[%clk 0:02:43.3]} 9. cxd5 {[%clk 0:02:58.6]} 9... cxd5
{[%clk 0:02:43.9]} 10. Nb5 {[%clk 0:02:59]} 10... Bb8 {[%clk 0:02:45.3]} 11. Rc1
{[%clk 0:02:58.8]} 11... a6 {[%clk 0:02:31.8]} 12. Nc7 {[%clk 0:02:58]} 12...
Bxc7 {[%clk 0:02:33.2]} 13. Qxc7 {[%clk 0:02:59.6]} 13... Qxc7 {[%clk
0:02:31.2]} 14. Rxc7 {[%clk 0:03:01.5]} 14... Ne8 {[%clk 0:02:20.5]} 15. Rc1
{[%clk 0:02:53.4]} 15... f6 {[%clk 0:02:21.9]} 16. g3 {[%clk 0:02:47.5]} 16...
Nb6 {[%clk 0:01:29.8]} 17. g4 {[%clk 0:02:38.8]} 17... Be6 {[%clk 0:01:01.8]}
18. g5 {[%clk 0:02:37.2]} 18... Kh8 {[%clk 0:01:03.2]} 19. gxf6 {[%clk
0:02:37.2]} 19... gxf6 {[%clk 0:01:04.3]} 20. Be2 {[%clk 0:02:30.5]} 20... Rc8
{[%clk 0:01:01.9]} 21. Rxc8 {[%clk 0:02:30]} 21... Nxc8 {[%clk 0:00:50.9]} 22.
d3 {[%clk 0:02:30.4]} 22... Ne7 {[%clk 0:00:40.8]} 23. Kd2 {[%clk 0:02:23.4]}
23... Nc6 {[%clk 0:00:40.6]} 24. Nh4 {[%clk 0:02:20.1]} 24... Rg8 {[%clk
0:00:40.2]} 25. Rg3 {[%clk 0:02:16.9]} 25... Rxg3 {[%clk 0:00:40.4]} 26. hxg3
{[%clk 0:02:18.8]} 26... Ng7 {[%clk 0:00:37.8]} 27. f4 {[%clk 0:02:17.4]} 27...
Kg8 {[%clk 0:00:33.8]} 28. Bf3 {[%clk 0:02:16.3]} 28... Kf7 {[%clk 0:00:24.3]}
29. g4 {[%clk 0:02:16.3]} 29... d4 {[%clk 0:00:18.3]} 30. exd4 {[%clk
0:02:12.5]} 30... Nxd4 {[%clk 0:00:14.4]} 31. Bxd4 {[%clk 0:02:11.2]} 31... exd4
{[%clk 0:00:16.3]} 32. Bxb7 {[%clk 0:02:05.7]} 32... Bxg4 {[%clk 0:00:16.2]} 33.
Bxa6 {[%clk 0:02:06.9]} 33... Nf5 {[%clk 0:00:12.1]} 34. Bc4+ {[%clk 0:02:07.6]}
34... Kg7 {[%clk 0:00:12.2]} 35. Be6 {[%clk 0:02:04.1]} 35... Nxh4 {[%clk
0:00:10.4]} 36. Bxg4 {[%clk 0:02:05.3]} 36... f5 {[%clk 0:00:10.2]} 37. Bh3
{[%clk 0:02:02.2]} 37... Kf6 {[%clk 0:00:11]} 38. a4 {[%clk 0:02:02.9]} 38...
Ng6 {[%clk 0:00:12.5]} 39. a5 {[%clk 0:02:03.4]} 39... Nxf4 {[%clk 0:00:13.8]}
40. a6 {[%clk 0:02:04.4]} 40... Nd5 {[%clk 0:00:13.6]} 41. Bg2 {[%clk
0:02:05.6]} 41... Nb6 {[%clk 0:00:14.7]} 42. a7 {[%clk 0:02:07]} 42... h5 {[%clk
0:00:15.3]} 43. a8=Q {[%clk 0:02:08.2]} 43... Nxa8 {[%clk 0:00:16.5]} 44. Bxa8
{[%clk 0:02:09.7]} 44... Kg5 {[%clk 0:00:18.4]} 45. b4 {[%clk 0:02:09.7]} 45...
Kg4 {[%clk 0:00:19.7]} 46. b5 {[%clk 0:02:11]} 46... f4 {[%clk 0:00:21.4]} 47.
Ke2 {[%clk 0:02:12.1]} 47... h4 {[%clk 0:00:21.8]} 48. b6 {[%clk 0:02:13.5]}
48... h3 {[%clk 0:00:23.3]} 49. Bf3+ {[%clk 0:02:15.1]} 49... Kg3 {[%clk
0:00:24.2]} 50. b7 {[%clk 0:02:17]} 50... h2 {[%clk 0:00:24.8]} 51. b8=Q {[%clk
0:02:17.6]} 1-0

[Event "*** Titled Tuesday 3|2 Blitz"]
[Site "Chess.com"]
[Date "2016.01.05"]
[Round "1"]
[White "Imre91"]
[Black "cool64chess"]
[Result "1-0"]
[WhiteElo "2545"]
[BlackElo "2229"]
[TimeControl "180+2"]
[EndTime "11:07:36 PST"]
[Termination "Imre91 won by resignation"]

1. d4 {[%clk 0:02:37.1]} 1... d5 {[%clk 0:02:59.8]} 2. Nf3 {[%clk 0:02:38.7]}
2... Nf6 {[%clk 0:02:59.7]} 3. c4 {[%clk 0:02:40.3]} 3... e6 {[%clk 0:02:58.2]}
4. Nc3 {[%clk 0:02:41.8]} 4... Be7 {[%clk 0:02:57.9]} 5. Bf4 {[%clk 0:02:41.9]}
5... O-O {[%clk 0:02:57.3]} 6. e3 {[%clk 0:02:43.4]} 6... Nbd7 {[%clk
0:02:50.8]} 7. Rc1 {[%clk 0:02:44.4]} 7... c6 {[%clk 0:02:41.5]} 8. a3 {[%clk
0:02:42.3]} 8... dxc4 {[%clk 0:02:37.3]} 9. Bxc4 {[%clk 0:02:42.9]} 9... Nd5
{[%clk 0:02:35.7]} 10. Bg3 {[%clk 0:02:42.6]} 10... N7f6 {[%clk 0:02:23.3]} 11.
O-O {[%clk 0:02:42.5]} 11... Bd6 {[%clk 0:02:18.9]} 12. Qc2 {[%clk 0:02:30.9]}
12... Bxg3 {[%clk 0:02:16.9]} 13. hxg3 {[%clk 0:02:32.8]} 13... Nxc3 {[%clk
0:01:57.8]} 14. Qxc3 {[%clk 0:02:28.2]} 14... b6 {[%clk 0:01:44]} 15. Ne5 {[%clk
0:02:26.8]} 15... Bb7 {[%clk 0:01:44.7]} 16. Be2 {[%clk 0:02:27.5]} 16... c5
{[%clk 0:01:33.6]} 17. dxc5 {[%clk 0:02:27.9]} 17... Ne4 {[%clk 0:01:31.1]} 18.
Qd4 {[%clk 0:02:28.6]} 18... Nxc5 {[%clk 0:01:18.7]} 19. Rfd1 {[%clk 0:02:14.3]}
19... Qxd4 {[%clk 0:01:14.7]} 20. exd4 {[%clk 0:02:13.6]} 20... Nb3 {[%clk
0:01:03]} 21. Rc7 {[%clk 0:02:13.4]} 21... Bd5 {[%clk 0:01:00.7]} 22. Bf3 {[%clk
0:02:13.3]} 22... Bxf3 {[%clk 0:00:45.9]} 23. gxf3 {[%clk 0:02:14.4]} 23... f6
{[%clk 0:00:35.3]} 24. Nc6 {[%clk 0:02:14.4]} 24... Rf7 {[%clk 0:00:35.5]} 25.
Rxf7 {[%clk 0:02:11.5]} 25... Kxf7 {[%clk 0:00:36.6]} 26. Rd3 {[%clk 0:02:12.9]}
26... Nc1 {[%clk 0:00:34.8]} 27. Rd1 {[%clk 0:02:13.8]} 27... Nb3 {[%clk
0:00:35.2]} 28. d5 {[%clk 0:02:15]} 28... exd5 {[%clk 0:00:35.2]} 29. Rxd5
{[%clk 0:02:16.9]} 29... Rc8 {[%clk 0:00:33.8]} 30. Nxa7 {[%clk 0:02:17]} 30...
Rc2 {[%clk 0:00:32.8]} 31. Rb5 {[%clk 0:02:15.6]} 31... Nd4 {[%clk 0:00:29.2]}
32. Rxb6 {[%clk 0:02:16.7]} 32... Nxf3+ {[%clk 0:00:30.5]} 33. Kf1 {[%clk
0:02:17.7]} 33... Nh2+ {[%clk 0:00:30.7]} 34. Kg1 {[%clk 0:02:15.4]} 34... Ng4
{[%clk 0:00:28.5]} 35. f4 {[%clk 0:02:13.9]} 35... Ne3 {[%clk 0:00:29.6]} 36.
Rb3 {[%clk 0:02:13.2]} 36... Nc4 {[%clk 0:00:29.6]} 37. a4 {[%clk 0:02:14.1]}
37... Nxb2 {[%clk 0:00:27.1]} 38. a5 {[%clk 0:02:15.2]} 38... Nc4 {[%clk
0:00:27.7]} 39. Nc6 {[%clk 0:02:15.1]} 39... Ra2 {[%clk 0:00:28.5]} 40. Rb7+
{[%clk 0:02:15]} 40... Kg6 {[%clk 0:00:28.9]} 41. Ra7 {[%clk 0:02:16.4]} 41...
h6 {[%clk 0:00:25.5]} 42. a6 {[%clk 0:02:17.2]} 42... Nd2 {[%clk 0:00:24.2]} 43.
Kf2 {[%clk 0:02:16.1]} 43... Ne4+ {[%clk 0:00:23.9]} 44. Kf3 {[%clk 0:02:16.2]}
44... Nc5 {[%clk 0:00:24.4]} 45. Nb8 {[%clk 0:02:12.6]} 45... Rb2 {[%clk
0:00:24.9]} 46. Ra8 {[%clk 0:02:09.4]} 46... Ra2 {[%clk 0:00:26.2]} 47. a7
{[%clk 0:02:09.4]} 47... h5 {[%clk 0:00:26.7]} 48. Nc6 {[%clk 0:02:10.3]} 48...
Ra3+ {[%clk 0:00:26.9]} 49. Kg2 {[%clk 0:02:10.5]} 49... Ne4 {[%clk 0:00:26.9]}
50. Re8 {[%clk 0:02:11.4]} 1-0